Cogmind - Beta 11 @@@ ROGUE MODE // 2022.03.18 @ 11:26:36 Player: Midas Result: Destroyed by S-27 Virus with Autogun Performance ------------- Evolutions (3) 1500 Regions Visited (6) 1200 Robots Destroyed (30) 150 Value Destroyed (1021) 1021 Prototype IDs (0) 0 Alien Tech Used (0) 0 Bonus (208) 208 TOTAL SCORE: 4079 Bonus ------- Pacifist 200 High Alert Combat Kills 8 Cogmind --------- Core Integrity 0/700 Matter 100/300 Energy 300/300 System Corruption 0% Temperature Cool (0) Movement Hovering (52) Location -7/Factory Parts ------- > --- POWER (2) -------- Nuclear Core Light Nuclear Core > --- PROPULSION (3) --- Gravmag System Gravmag System Gravmag System > --- UTILITY (5) ------ Matter Filter System Shield > --- WEAPON (3) ------- Flak Gun Spear > --- INVENTORY (5) ---- Light Nuclear Core Gravmag System VTOL Module Xenon Bombardment Thruster Improved EM Pulse Cannon Peak State ------------ > --- POWER ------------ Nuclear Core Light Nuclear Core > --- PROPULSION ------- Gravmag System Gravmag System Gravmag System > --- UTILITY ---------- Matter Filter System Shield > --- WEAPON ----------- Flak Gun Spear > --- INVENTORY -------- Light Nuclear Core Gravmag System VTOL Module Xenon Bombardment Thruster Improved EM Pulse Cannon [Rating: 34] Favorites ----------- Power Light Nuclear Core Engine Light Ion Engine Power Core Light Nuclear Core Propulsion Light Treads Treads Light Treads Leg Aluminum Leg Hover Unit Improved Hover Unit Flight Unit VTOL Module Utility Medium Storage Unit Device Improved Terrain Scanner Storage Medium Storage Unit Processor Advanced Targeting Computer Hackware System Shield Protection Light Armor Plating Weapon High-powered Shotgun Energy Gun Small Laser Ballistic Gun High-powered Shotgun Ballistic Cannon Assault Cannon Launcher Mini Grenade Launcher Piercing Weapon Spear Build | -11 -10 -9 -8 -7 -7 -7 ------- Run | Scr Mat Mat Mat Fac Was Fac Slots Evolved 6 | . . 2 2 2 . . Power 1 | . . . . 1 . . Propulsion 1 | . . 1 . . . . Utility 3 | . . 1 1 1 . . Weapon 1 | . . . 1 . . . Parts Attached 61 | . . 26 5 4 4 22 Power 8 | . . 2 . 1 1 4 Engine 3 | . . 1 . 1 . 1 Core 5 | . . 1 . . 1 3 Reactor . | . . . . . . . Propulsion 22 | . . 13 1 . 1 7 Treads 7 | . . 6 1 . . . Leg 4 | . . 3 . . 1 . Wheel . | . . . . . . . Hover 7 | . . 4 . . . 3 Flight 4 | . . . . . . 4 Utility 15 | . . 6 1 2 . 6 Device 6 | . . 2 . 1 . 3 Storage 4 | . . 2 . . . 2 Processor 1 | . . . . 1 . . Hackware 1 | . . . . . . 1 Protection 3 | . . 2 1 . . . Artifact . | . . . . . . . Weapon 16 | . . 5 3 1 2 5 Energy Gun 2 | . . 1 . . . 1 Energy Cannon . | . . . . . . . Ballistic Gun 11 | . . 4 3 . 1 3 Ballistic Cannon 1 | . . . . 1 . . Launcher 1 | . . . . . 1 . Special Weapon . | . . . . . . . Impact Weapon . | . . . . . . . Slashing Weapon . | . . . . . . . Piercing Weapon 1 | . . . . . . 1 Special Melee Weapon . | . . . . . . . Unidentified Prototypes . | . . . . . . . Parts Lost 26 | . . 10 1 . 10 5 Power 6 | . . 2 . . 3 1 Propulsion 7 | . . 4 . . 3 . Utility 5 | . . 2 . . 2 1 Weapon 8 | . . 2 1 . 2 3 Highest Loss Streak 6 | . . 6 1 . 6 5 To Critical Strikes 1 | . . . . . 1 . Average Slot Usage (%) 71 | . 85 85 82 85 25 44 Engine 3 | . 14 7 . 2 1 . Core 5 | . . 2 9 7 3 6 Treads 11 | . . 8 27 23 2 . Leg 3 | . 28 3 . . 2 . Hover 5 | . . 18 . . . 6 Flight 1 | . . . . . . 8 Device 3 | . . 7 . 2 . 4 Storage 8 | . 14 12 9 7 1 3 Protection 7 | . . 7 13 15 1 . Energy Gun 3 | . 14 6 . . . . Ballistic Gun 14 | . 14 13 23 20 4 3 Naked Turns 3 | . . . . . . 3 Heaviest Build 40 | 10 10 31 32 40 40 21 Greatest Support 60 | 20 20 60 60 60 60 27 Greatest Overweight (x) 10 | . . 4 . . 10 3 Average Overweight (x) . | . . . . . . . Largest Inventory Capacity 10 | 8 8 10 10 10 10 10 Average Capacity 8 | 8 8 9 10 10 5 5 Most Carried 10 | 6 8 10 10 9 9 5 Average Carried 6 | 6 7 7 8 8 3 3 Final Capacity 10 | 8 8 10 10 10 5 5 Final Carried 9 | 6 8 8 9 9 1 5 Class Distribution -------------------- 54% | Mutant 27% | Scavenger-Tank 10% | Scavenger-Sprinter 8% | Scavenger-Mutant Dominant Class ---------------- Mutant | -10/Materials Mutant | -9/Materials Scavenger-Tank | -8/Materials Scavenger-Tank | -7/Factory Mutant | -7/Waste Scavenger-Sprinter | -7/Factory Resources | -11 -10 -9 -8 -7 -7 -7 ----------- Run | Scr Mat Mat Mat Fac Was Fac Matter Collected 1075 | 200 . 308 260 . . 307 Remotely . | . . . . . . . Salvage Created 1999 | . . 355 263 . 1195 186 Parts 65 | . . 32 13 . 4 16 Haulers Intercepted . | . . . . . . . Recyclers Shooed . | . . . . . . . Parts Field Recycled . | . . . . . . . Retrieved Matter . | . . . . . . . Parts Self-Destructed . | . . . . . . . Prevented . | . . . . . . . Kills | -11 -10 -9 -8 -7 -7 -7 ------- Run | Scr Mat Mat Mat Fac Was Fac Combat Hostiles Destroyed 29 | . . 10 8 . 5 6 Melee 3 | . . . . . . 3 Guns 21 | . . 10 8 . . 3 AOE 5 | . . . . . 5 . Classes Destroyed 6 | . . 4 1 . 1 . Watcher 1 | . . 1 . . . . Swarmer 11 | . . 3 3 . . 5 Grunt 6 | . . 4 2 . . . Sentry 5 | . . 3 1 . . 1 Hunter 2 | . . . 2 . . . Compactor 5 | . . . . . 5 . Best Kill Streak 5 | . . 5 3 . 4 2 Combat Bots Only 5 | . . 5 3 . 4 2 Max Kills in Single Turn 2 | . . 1 2 . 1 1 Gunslinging 1 | . . . 1 . . . Exploded 1 | . . . . . 1 . Melee 1 | . . . . . . 1 Uniques/NPCs Destroyed . | . . . . . . . Combat | -11 -10 -9 -8 -7 -7 -7 -------- Run | Scr Mat Mat Mat Fac Was Fac Damage Taken 3439 | . 42 1275 543 . 597 982 Core 1046 | . . 271 62 . 197 516 Absorbed by Shields . | . . . . . . . Regen/Repaired (Parts) 50 | . . . 50 . . . Core Remaining (%) 80 | 100 100 32 88 . . . Volleys Fired 87 | . . 37 19 . 19 12 Largest 3 | . . 2 3 . 2 1 Hottest 78 | . . 60 78 . 55 55 Shots Fired 149 | . . 61 50 . 26 12 Gun 130 | . . 61 50 . 7 12 Cannon . | . . . . . . . Launcher 19 | . . . . . 19 . Special . | . . . . . . . Kinetic 108 | . . 42 50 . 7 9 Thermal 19 | . . 19 . . . . Explosive 19 | . . . . . 19 . Electromagnetic 3 | . . . . . . 3 Robot Hit Streak 7 | . . 6 7 . 4 6 Robot Miss Streak 9 | . . 5 2 . 2 9 Penetration Max . | . . . . . . . Secondary Targets 2 | . . 1 1 . . . Max Gunslinging Chain 1 | . . 1 1 . . . Shots Hit Robots 110 | . . 39 36 . 19 16 Core Hits 66 | . . 22 15 . 17 12 Critical Kills . | . . . . . . . Critical Parts Destroyed 1 | . . . 1 . . . Critical Strikes 1 | . . . 1 . . . Destroy 1 | . . . 1 . . . Melee Attacks 10 | . . . . . . 10 Impact . | . . . . . . . Slashing . | . . . . . . . Piercing 10 | . . . . . . 10 Sneak Attacks 1 | . . . . . . 1 Combat Hostiles . | . . . . . . . Follow-up Attacks . | . . . . . . . Damage Inflicted 3442 | . . 513 502 . 2106 321 Guns 1251 | . . 509 502 . 132 108 Cannons . | . . . . . . . Explosions 1974 | . . . . . 1974 . Melee 213 | . . . . . . 213 Ramming 4 | . . 4 . . . . Kinetic 1054 | . . 347 502 . 132 73 Thermal 162 | . . 162 . . . . Explosive 1974 | . . . . . 1974 . Electromagnetic 35 | . . . . . . 35 Impact . | . . . . . . . Slashing . | . . . . . . . Piercing 213 | . . . . . . 213 Highest Corruption . | . . . . . . . Average Corruption . | . . . . . . . Corruption Purged . | . . . . . . . Corruption Blocked . | . . . . . . . Overload Shots . | . . . . . . . Overflow Damage 9 | . . . . . 9 . Projectiles . | . . . . . . . Explosions 9 | . . . . . 9 . Melee . | . . . . . . . Knockbacks . | . . . . . . . Impact . | . . . . . . . Kinetic . | . . . . . . . Secondary . | . . . . . . . Self-Inflicted Damage 139 | . . 2 . . 137 . Shots 6 | . . . . . 6 . Rammed 2 | . . 2 . . . . Targets Rammed 2 | . . 2 . . . . Kicked . | . . . . . . . Crushed . | . . . . . . . Highest Temperature 264 | . . 264 123 . . . Average Temperature 78 | . . 97 44 . . . Received Heat Transfer 750 | . 24 612 108 . . 6 Effects 3 | . . 3 . . . . Energy Bleed 2 | . . 2 . . . . Interference 1 | . . 1 . . . . Siege Activations . | . . . . . . . Robots Corrupted . | . . . . . . . Combat Hostiles . | . . . . . . . Parts Fried . | . . . . . . . Impact Corruptions . | . . . . . . . Robots Melted . | . . . . . . . Combat Hostiles . | . . . . . . . Parts Melted . | . . . . . . . Heat Transferred 375 | . . 375 . . . . Parts Sabotaged . | . . . . . . . Parts Stolen . | . . . . . . . Parts Stripped . | . . . . . . . Power Chain Reactions . | . . . . . . . Missiles Intercepted . | . . . . . . . Alert | -11 -10 -9 -8 -7 -7 -7 ------- Run | Scr Mat Mat Mat Fac Was Fac Peak Influence 412 | . 19 412 275 65 60 137 Initial 97 | . . 7 97 65 22 42 Average 103 | . 2 180 134 65 16 74 Maximum Alert Level 2 | . . 2 1 . . . Low Security (%) 81 | 100 100 40 86 100 100 100 Level 1 18 | . . 58 13 . . . Level 2 . | . . . . . . . Level 3 . | . . . . . . . Level 4 . | . . . . . . . Level 5 . | . . . . . . . High Security . | . . . . . . . Max Security . | . . . . . . . Squads Dispatched 3 | . . . 2 . . 1 Investigation 1 | . . . 1 . . . Extermination . | . . . . . . . Reinforcement 2 | . . . 1 . . 1 Assault . | . . . . . . . Garrison . | . . . . . . . Intercept . | . . . . . . . Searches Triggered . | . . . . . . . Construction Impeded . | . . . . . . . Haulers Reinforced 1 | . . . . . . 1 Active Scanning Responses . | . . . . . . . Cargo Convoy Interrupts . | . . . . . . . Stealth | -11 -10 -9 -8 -7 -7 -7 --------- Run | Scr Mat Mat Mat Fac Was Fac Distress Signals 3 | . . 2 1 . . . Communications Jammed . | . . . . . . . Distress Signals . | . . . . . . . Times Spotted 53 | . 3 23 11 . 6 10 Peak Tracking Total 12 | . 2 12 3 . 4 4 Tactical Retreats 6 | . 1 4 . . . 1 Traps | -11 -10 -9 -8 -7 -7 -7 ------- Run | Scr Mat Mat Mat Fac Was Fac Traps Triggered 1 | . . . . 1 . . Indirectly . | . . . . . . . Trap Hack Attempts . | . . . . . . . Triggered . | . . . . . . . Disarmed . | . . . . . . . Reprogrammed . | . . . . . . . Reused . | . . . . . . . Traps Extracted . | . . . . . . . Installed . | . . . . . . . Triggered . | . . . . . . . Machines | -11 -10 -9 -8 -7 -7 -7 ---------- Run | Scr Mat Mat Mat Fac Was Fac Machines Disabled 1 | . . . 1 . . . Max in Single Turn 1 | . . . 1 . . . Machines Sabotaged . | . . . . . . . Garrisons Compromised . | . . . . . . . Overloaded Fab Kills . | . . . . . . . Hacking | -11 -10 -9 -8 -7 -7 -7 --------- Run | Scr Mat Mat Mat Fac Was Fac Machines Accessed 4 | . 2 . 2 . . . Terminals 2 | . 2 . . . . . Fabricators . | . . . . . . . Repair Stations 1 | . . . 1 . . . Recycling Units 1 | . . . 1 . . . Scanalyzers . | . . . . . . . Garrison Access . | . . . . . . . Total Hacks 7 | . 2 . 5 . . . Successful 5 | . 1 . 4 . . . Failed 2 | . 1 . 1 . . . Catastrophic . | . . . . . . . Database Lockouts . | . . . . . . . Manual . | . . . . . . . Terminals 2 | . 2 . . . . . Fabricators . | . . . . . . . Repair Stations 2 | . . . 2 . . . Recycling Units 3 | . . . 3 . . . Scanalyzers . | . . . . . . . Garrison Access . | . . . . . . . Terminal Hacks 1 | . 1 . . . . . Locate Traps 1 | . 1 . . . . . Fabricator Hacks . | . . . . . . . Repair Station Hacks 2 | . . . 2 . . . Scan Component 1 | . . . 1 . . . Repair 1 | . . . 1 . . . Recycling Unit Hacks 2 | . . . 2 . . . Recycle Component 1 | . . . 1 . . . Report Inventory 1 | . . . 1 . . . Scanalyzer . | . . . . . . . Garrison Access Hacks . | . . . . . . . Unauthorized Hacks . | . . . . . . . Terminals . | . . . . . . . Fabricators . | . . . . . . . Repair Stations . | . . . . . . . Recycling Units . | . . . . . . . Scanalyzers . | . . . . . . . Garrison Access . | . . . . . . . Data Cores Recovered . | . . . . . . . Used . | . . . . . . . Hacking Detections 3 | . 2 . 1 . . . Full Trace Events 1 | . . . 1 . . . Feedback Events . | . . . . . . . Feedback Blocked . | . . . . . . . Robot Schematics Acquired . | . . . . . . . Robots Built . | . . . . . . . Authchips . | . . . . . . . Time . | . . . . . . . Total Robot Build Rating . | . . . . . . . Part Schematics Acquired . | . . . . . . . Parts Built . | . . . . . . . Authchips . | . . . . . . . Time . | . . . . . . . Total Part Build Rating . | . . . . . . . Parts Repaired 1 | . . . 1 . . . Time 38 | . . . 38 . . . Parts Recycled 1 | . . . 1 . . . Recycled Matter . | . . . . . . . Retrieved Matter . | . . . . . . . Retrieved Components . | . . . . . . . Parts Scanalyzed . | . . . . . . . Part Schematics Acquired . | . . . . . . . Parts Damaged . | . . . . . . . Bothacking | -11 -10 -9 -8 -7 -7 -7 ------------ Run | Scr Mat Mat Mat Fac Was Fac Used RIF Installer . | . . . . . . . Robots Hacked . | . . . . . . . Non-combat . | . . . . . . . Combat . | . . . . . . . Robot Hacks Applied . | . . . . . . . Relay Couplers Released . | . . . . . . . Fabnet Peak Effective % . | . . . . . . . Robots Rewired . | . . . . . . . Allies Hacked . | . . . . . . . Hacks Repelled . | . . . . . . . Allies | -11 -10 -9 -8 -7 -7 -7 -------- Run | Scr Mat Mat Mat Fac Was Fac Total Allies . | . . . . . . . Largest Group . | . . . . . . . Highest-Rated Group . | . . . . . . . Highest-Rated Ally . | . . . . . . . Total Orders . | . . . . . . . Ally Attacks . | . . . . . . . Total Damage . | . . . . . . . Kills . | . . . . . . . Allies Corrupted . | . . . . . . . Allies Melted . | . . . . . . . Intel | -11 -10 -9 -8 -7 -7 -7 ------- Run | Scr Mat Mat Mat Fac Was Fac Robot Analysis Total . | . . . . . . . Derelict Logs Recovered . | . . . . . . . Drone Launches . | . . . . . . . Drone Recoveries . | . . . . . . . Exploration | -11 -10 -9 -8 -7 -7 -7 ------------- Run | Scr Mat Mat Mat Fac Was Fac Turns Passed 2167 | 2 212 550 553 226 193 431 Spaces Moved 1818 | 2 176 485 264 138 130 623 Core 191 | . . 1 . . 68 122 Treads 474 | . . 60 264 138 12 . Legs 261 | 2 176 33 . . 50 . Wheels . | . . . . . . . Hover 493 | . . 391 . . . 102 Flight 399 | . . . . . . 399 Fastest Speed 29 | 120 120 52 160 160 50 29 Average Speed 92 | 120 120 82 160 160 111 45 Slowest Speed 550 | 120 120 260 160 160 550 200 Overloaded Moves . | . . . . . . . Propulsion Burnouts . | . . . . . . . Robots Hopped . | . . . . . . . Cave-ins Triggered . | . . . . . . . Exploration Rate (%) 24 | 2 26 38 16 4 72 12 Regions Visited 6 Branch Regions . Pre-discovered Areas . | . . . . . . . Known Exits Taken . | . . . . . . . Unknown Exits Taken 4 | 1 1 1 1 . . . Scrap Searched . | . . . . . . . Spaces Dug . | . . . . . . . Terrain Destroyed 113 | . . . . . 113 . Melee . | . . . . . . . Projectile . | . . . . . . . AOE 113 | . . . . . 113 . Terrain Rammed . | . . . . . . . Walls Destroyed . | . . . . . . . Machines Disabled . | . . . . . . . Actions | -11 -10 -9 -8 -7 -7 -7 --------- Run | Scr Mat Mat Mat Fac Was Fac Total 2149 | 1 177 579 354 143 152 743 Wait 126 | . . 12 60 . . 54 Move 1813 | 1 175 484 263 138 129 623 Hop . | . . . . . . . Pick Up 24 | . 2 7 5 1 . 9 Fast Attach 30 | . . 10 2 2 . 16 Attach 21 | . . 9 2 1 4 5 Detach 8 | . . 3 . . . 5 Swap 10 | . . 7 1 1 . 1 Drop 18 | . . 8 2 . . 8 Fire 87 | . . 37 19 . 19 12 Melee 10 | . . . . . . 10 Ram 2 | . . 2 . . . . Kick . | . . . . . . . Crush . | . . . . . . . Escape Stasis . | . . . . . . . Rewire . | . . . . . . . Trap . | . . . . . . . Miscellaneous . | . . . . . . . Route ------- -11/Scrapyard -10/Materials -9/Materials -8/Materials -7/Factory -7/Waste -7/Factory History --------- Turn | Location | Event 1 | -11/Scrapyard | Discovered new exit (range 1) 3 | -11/Scrapyard | Entered Materials 202 | -10/Materials | Discovered new exit (range 8) 215 | -10/Materials | Entered another Materials area 215 | -9/Materials | Evolved 2 slots: Propulsion x1, Utility x1 326 | -9/Materials | Build established: Mutant 538 | -9/Materials | Lost 3 parts (1p1n1w) 584 | -9/Materials | Core integrity fell below 50% 610 | -9/Materials | Lost 6 parts (1p2n2u1w) 711 | -9/Materials | Discovered new exit (range 14) 765 | -9/Materials | Entered another Materials area 765 | -8/Materials | Evolved 2 slots: Utility x1, Weapon x1 1019 | -8/Materials | Repaired Minigun? 1293 | -8/Materials | Discovered new exit (range 16) 1318 | -8/Materials | Entered Factory 1318 | -7/Factory | Evolved 2 slots: Power x1, Utility x1 1536 | -7/Factory | Build established: Scavenger-Tank 1544 | -7/Factory | Sucked down chute 1544 | -7/Factory | Entered Waste 1559 | -7/Waste | Spotted C-40 Crusher 1560 | -7/Waste | Crushed by Compactor (1 part destroyed, 1 dropped) 1563 | -7/Waste | Crushed by Compactor (1 part destroyed, 2 dropped) 1566 | -7/Waste | Crushed by Compactor (1 part destroyed, 1 dropped) 1574 | -7/Waste | Crushed by Compactor (1 part destroyed, 2 dropped) 1591 | -7/Waste | Spotted C-40 Crusher 1605 | -7/Waste | Lost 6 parts (1p2n2u1w) 1627 | -7/Waste | Spotted C-40 Crusher 1628 | -7/Waste | Spotted C-40 Crusher 1663 | -7/Waste | Destroyed C-40 Crusher 1673 | -7/Waste | Spotted C-40 Crusher 1685 | -7/Waste | Destroyed C-40 Crusher 1696 | -7/Waste | Destroyed C-40 Crusher 1699 | -7/Waste | Spotted C-40 Crusher 1705 | -7/Waste | Destroyed C-40 Crusher 1711 | -7/Waste | Discovered new exit (range 11) 1720 | -7/Waste | Destroyed C-40 Crusher 1737 | -7/Waste | Entered Factory 1808 | -7/Factory | Core integrity fell below 50% 1837 | -7/Factory | Core integrity fell below 20% 1886 | -7/Factory | Lost 5 parts (1p1u3w) 2168 | -7/Factory | Destroyed by S-27 Virus with Autogun Last Messages --------------- 01995_ Connecting with Scanalyzer... 01995_ Current location identified: Factory 01998_ Dropped Flak Gun. 01999_ Acquired Imp. EM Pulse Cannon. 02005_ Sneak attack on A-02 Transporter. 02005_ A-02 Transporter calls for reinforcements. 02005_ ALERT: Hostile activity reported, dispatching reinforcements to area. 02020_ Y-54 Guardian destroyed. 02023_ Acquired 67 matter. 02027_ Acquired Matter Filter. 02029_ Dropped Sml. Matter Pod. 02038_ Dropped VTOL Module. 02039_ Dropped Wheel. 02040_ Dropped Component Analysis Suite. 02041_ Acquired Gravmag System. 02050_ Dropped VTOL Module. 02051_ Acquired Gravmag System. 02063_ Acquired Nuclear Core. 02155_ S-27 Virus destroyed. 02161_ Acquired 27 matter. Map ----- +----------------------------------------------------+ | ??????????????????????????????????????? | | ??????????????????????????????????????? | | ??????????????????????????????????????? | | ??????????????????????????????????????? | | ??????????????????????????????????????? | | ??????????????????????????????????????? | | ??????????????????????????????????????? | | ??????????????????????????????????????? | | ??????????????????????????????????????? | | ??????????????????????????????????????? | | ??????????????????????????????????????? | | ??????????????????????????????????????? | | ??????????????????????????????????????? | | ???????????????????##############?????? | | ???????????????????# ] #?????? | | ???????????????????# #?????? | | ???????????????????# """"""" #?????? | | ???????????????????# """"""" #?????? | | ???????????????????# """"""" #?????? | | ???????????????????# """"""" #?????? | | ???????????????????# #?????? | | ???????????????????# """"""" #?????? | | ???????????????????# """"""" #?????? | | ???????????????????# """"""" #?????? | | ???????????????????# """"""" / #?????? | | ???????????????????# @=[ #?????? | | ???????????????????#######s############ | | ?????????????????????#### %=+ # | | ??????????????########T # # / # | | ??????????????+ """ + # | | ??????????????# ^""F"" # """ """ # | | ??????????????# "" "" # """ """ # | | ??????????????# = # """ """ # | | ??????????????# !=^ = # # | | ???????????? / # # | | ????????? # """ """ ############# | | ????????#####?# """ """ #??? | | ????????????? """ """ #??? | | ??????????? #??? | | ??????????? #??? | | ??????????+####### #??? | | ?????????????????################# ###? | | ?????????????????????########### #? | | ?????????????????????# #? | | ?????????????????????# ! #? | | ?????????????????????+ [ #? | | ?????????????????????## * = #? | | ??????????????????????# [ ######? | | ??????????????????????# #????? | | ??????????????????????########## #????? | +----------------------------------------------------+ Best States ------------- Heat Dissipation 34 Energy Generation 23 Energy Capacity 300 Matter Stores 300 Matter Capacity 350 Sight Range 16 Terrain Scan Range 16 Terrain Scan Density 10 Armor Coverage 300 Resistance: TH 10 Resistance: EX 25 Evasion (%) 64 Targeting Accuracy 8 Recoil Reduction 3 Matter Filtering 30 Defensive Hacking 10 Item Schematics ----------------- None Robot Schematics ------------------ None Fabricated ------------ Nothing Alien Tech Used ----------------- None Achievements -------------- None Challenges ------------ None Game ------ Seed MiningMasterSuite Manual? 0 Play Time 00:44:12 Cumulative 25.5 hours Start 2022.03.18 @ 10:39:22 End 2022.03.18 @ 11:26:36 Sessions 1 Manual Loads 0 Difficulty Rogue Special Mode None Game No. 39 Rogue 24 Adventurer 15 Explorer 0 Win Type - Total 0 Types 0/0/0/0/0/0/0/0/0 Lore% 17 Gallery% 26 Achievement% 19 Wizard Run 0 Options --------- ASCII 0 Keyboard 0 Movement Arrows Keybinds 0 Fullscreen 0 Font 20/SmallcapsGlow Map View 113x50 Tactical HUD 1 Map Filters NONE Filters NONE Steam 1 RUN: 9175da20-f27b-4a8d-9785-e84487fd7520